Cogmind - Beta 13 @@@ ROGUE MODE // 2024.04.03 @ 22:47:08 Player: feesh Result: Destroyed by G-73 Enforcer with Heavy Laser Performance ------------- Evolutions (9) 4500 Regions Visited (25) 5000 Robots Destroyed (144) 720 Value Destroyed (4861) 4861 Prototype IDs (26) 520 Alien Tech Used (0) 0 Bonus (2939) 2939 TOTAL SCORE: 18540 Bonus ------- High Alert Combat Kills 649 Follower Combat Kills 1580 Met Warlord at Base 500 MAIN.C Attacked Warlord 500 Warlord Defense Kills 54 Friendly Fire -344 Cogmind --------- Core Integrity 0/1600 Matter 300/300 Energy 98/100 System Corruption 0% Temperature Cool (27) Movement Core (50) Location -1/Access Parts ------- > --- POWER (2) -------- (None) > --- PROPULSION (7) --- (None) > --- UTILITY (12) ----- Enhanced Optical Array Advanced Terrain Scan Processor > --- WEAPON (4) ------- (None) > --- INVENTORY (5) ---- Improved Antigrav System Advanced Coolant Injector KE Penetrator Vortex Lance (12) Peak State ------------ > --- POWER ------------ Micro Fission Core > --- PROPULSION ------- Antigrav System Combat Gravmag System Combat Gravmag System VTOL Module VTOL Module Improved Cesium-ion Thruster Field Propulsion Drive > --- UTILITY ---------- Compact Battery Enhanced Optical Array Advanced Signal Interpreter Advanced Terrain Scanner Experimental Propulsion Shielding Makeshift Hacking Suite Mapping Drone Bay > --- WEAPON ----------- Backup Laser III Advanced Plasma Rifle Vortex Lance > --- INVENTORY -------- Fission Core Improved Antigrav System Cloaking Device Layered Light Armor Plating KE Penetrator [Rating: 95] Favorites ----------- Power Light Ion Engine Engine Light Ion Engine Power Core Micro Fission Core Propulsion Improved Cesium-ion Thruster Treads Improved Treads Leg Aluminum Leg Wheel Wheel Hover Unit Antigrav System Flight Unit Improved Cesium-ion Thruster Utility Hardened Light Armor Plating Device Cloaking Device Storage Compact Battery Processor Enhanced Optical Array Hackware Makeshift Hacking Suite Protection Hardened Light Armor Plating Weapon Katana Energy Gun Advanced Plasma Rifle Energy Cannon Beam Cannon Ballistic Gun Heavy Battle Rifle Ballistic Cannon Mass Driver Launcher Rocket Launcher Special Weapon Improved Plasma Cutter Impact Weapon Mace Slashing Weapon Katana Piercing Weapon Vortex Lance Build | -11 -10 -10 -9 -9 -8 -8 -7 -7 -7 -6 -6 -6 -5 -5 -5 -5 -5 -4 -4 -4 -4 -3 -3 -2 -1 ------- Run | Yrd Mat Min Mat Min Mat Sto Fac Was Fac Fac Low Low Fac Was Fac Ext Cet Fac Upp Upp War Pro Res Res Acc Slots Evolved 18 | . . . 2 . 2 . 2 . . 2 . . 2 . . . . 2 . . . . 2 2 2 Power 1 | . . . . . . . . . . . . . . . . . . . . . . . 1 . . Propulsion 5 | . . . 1 . 1 . 1 . . . . . 1 . . . . 1 . . . . . . . Utility 10 | . . . 1 . 1 . . . . 2 . . 1 . . . . 1 . . . . 1 1 2 Weapon 2 | . . . . . . . 1 . . . . . . . . . . . . . . . . 1 . Parts Attached 188 | 6 6 2 24 1 17 10 24 5 11 12 4 1 5 2 6 6 . 24 2 . 9 3 4 1 3 Power 15 | 1 1 . 3 . 1 1 1 . . 2 1 . . . . 1 . 1 . . . . 1 . 1 Engine 8 | 1 1 . 2 . 1 1 . . . 1 . . . . . . . . . . . . . . 1 Core 7 | . . . 1 . . . 1 . . 1 1 . . . . 1 . 1 . . . . 1 . . Reactor . | . . . . . . . . . . . . . . . . . . . . . . . . . . Propulsion 66 | 2 1 1 7 . 4 5 12 2 4 3 1 . 3 . 4 3 . 6 . . 3 3 . . 2 Treads 8 | . . . 3 . 4 1 . . . . . . . . . . . . . . . . . . . Leg 21 | 2 1 1 4 . . . 11 2 . . . . . . . . . . . . . . . . . Wheel 5 | . . . . . . 4 1 . . . . . . . . . . . . . . . . . . Hover 19 | . . . . . . . . . 1 3 1 . 2 . 3 3 . 2 . . 3 1 . . . Flight 13 | . . . . . . . . . 3 . . . 1 . 1 . . 4 . . . 2 . . 2 Utility 57 | 1 1 . 6 1 7 2 5 . 4 5 2 1 1 . 1 1 . 12 2 . 1 . 3 1 . Device 18 | . . . . . 2 . . . 1 1 1 1 . . . . . 8 1 . 1 . 1 1 . Storage 9 | 1 . . 1 1 1 . 1 . 1 . 1 . . . . . . 2 . . . . . . . Processor 9 | . . . . . 1 . . . 2 3 . . . . . 1 . 1 . . . . 1 . . Hackware 2 | . . . . . . . . . . . . . . . 1 . . . 1 . . . . . . Protection 19 | . 1 . 5 . 3 2 4 . . 1 . . 1 . . . . 1 . . . . 1 . . Artifact . | . . . . . . . . . . . . . . . . . . . . . . . . . . Weapon 50 | 2 3 1 8 . 5 2 6 3 3 2 . . 1 2 1 1 . 5 . . 5 . . . . Energy Gun 15 | 1 1 . 1 . . 1 2 1 1 . . . 1 1 . . . 3 . . 2 . . . . Energy Cannon 5 | . 2 . 2 . . . . . . . . . . . . . . 1 . . . . . . . Ballistic Gun 4 | 1 . . . . . . . . 1 . . . . 1 1 . . . . . . . . . . Ballistic Cannon 5 | . . . . . . 1 2 1 . . . . . . . 1 . . . . . . . . . Launcher 11 | . . 1 4 . 4 . 1 1 . . . . . . . . . . . . . . . . . Special Weapon 3 | . . . . . . . 1 . . . . . . . . . . 1 . . 1 . . . . Impact Weapon 2 | . . . 1 . . . . . 1 . . . . . . . . . . . . . . . . Slashing Weapon 2 | . . . . . 1 . . . . 1 . . . . . . . . . . . . . . . Piercing Weapon 3 | . . . . . . . . . . 1 . . . . . . . . . . 2 . . . . Special Melee Weapon . | . . . . . . . . . . . . . . . . . . . . . . . . . . Unidentified Prototypes 13 | . . . 1 . . 1 2 . 1 1 . . . . 1 . . 2 . . 4 . . . . Corrupted Parts 3 | . 1 . . . . . 1 1 . . . . . . . . . . . . . . . . . System Corruption 16 | . 1 . . . . . 10 5 . . . . . . . . . . . . . . . . . Parts Lost 87 | . 3 . 8 . 11 3 10 6 . 2 . . . . . 2 3 16 . 1 1 2 1 . 18 Power 9 | . 1 . 3 . 2 . . . . . . . . . . . . . . . . . . . 3 Propulsion 34 | . 1 . 1 . 4 1 5 3 . 1 . . . . . 1 1 7 . . . . . . 9 Utility 29 | . . . 2 . 3 1 4 1 . 1 . . . . . 1 2 5 . 1 1 1 1 . 5 Weapon 15 | . 1 . 2 . 2 1 1 2 . . . . . . . . . 4 . . . 1 . . 1 Highest Loss Streak 11 | . 2 . 3 . 6 2 2 6 . 2 . . . . . 1 3 6 . 1 1 2 1 . 11 To Critical Strikes 1 | . . . . . . . . 1 . . . . . . . . . . . . . . . . . Average Slot Usage (%) 83 | . 84 100 90 100 79 81 88 57 40 82 86 86 82 98 99 95 89 74 77 71 87 81 88 78 49 Engine 3 | . 13 14 4 11 5 6 . . . 2 . . . . . . . . . . . . . . 2 Core 3 | . . . 2 . . . 6 5 . 3 6 6 5 5 5 4 5 5 5 5 5 5 9 8 3 Treads 5 | . . . 6 33 28 7 . . . . . . . . . . . . . . . . . . . Leg 7 | . 27 28 25 . . . 25 22 . . . . . . . . . . . . . . . . . Wheel 2 | . . . . . . 24 9 . . . . . . . . . . . . . . . . . . Hover 6 | . . . . . . . . . 6 9 13 13 19 23 22 30 32 13 . . 11 7 4 4 3 Flight 6 | . . . . . . . . . 6 20 20 20 12 11 11 4 . 6 21 21 21 27 28 26 13 Device 5 | . . . . . . . . . 2 7 6 8 11 11 11 7 5 20 18 13 10 6 9 8 6 Storage 7 | . 14 14 11 11 10 9 12 11 . 6 6 6 5 5 5 5 5 1 5 5 5 5 4 4 . Processor 5 | . . . . . 1 . . . 9 19 20 17 11 11 11 11 11 12 10 10 8 5 7 8 8 Hackware 1 | . . . . . . . . . . . . . . . 2 5 3 . 2 5 5 5 4 4 4 Protection 9 | . 1 14 17 22 15 16 14 4 . . 6 6 5 11 8 5 5 2 5 5 5 5 9 4 3 Energy Gun 3 | . 7 . . . . 4 3 6 5 3 . . 1 9 5 5 5 2 5 5 9 6 4 4 1 Energy Cannon 1 | . 13 17 2 . . . . . . . . . . . . . . 2 . . . . . . . Ballistic Gun 1 | . 7 . . . . . . . 4 . . . . 3 10 10 5 1 . . . . . . . Launcher 3 | . . 10 9 11 8 1 4 . . . . . . . . . . . . . . . . . . Impact Weapon 1 | . . . 8 11 3 . . . 2 4 . . . . . . . . . . . . . . . Slashing Weapon 2 | . . . . . 5 9 7 . . 1 6 6 5 1 . . . . . . . . . . . Naked Turns 37 | . . . . . . . . 32 5 . . . . . . . . . . . . . . . . Heaviest Build 76 | 13 17 17 30 59 66 69 76 70 9 21 18 14 24 31 31 35 35 43 22 20 22 21 31 31 31 Greatest Support 92 | 20 20 20 69 69 92 63 75 75 18 18 18 18 40 40 40 63 63 65 21 21 28 32 32 32 32 Greatest Overweight (x) 6 | 3 . . 1 . 1 4 6 2 1 1 . . . . 2 1 . 3 1 . 1 5 . . 1 Average Overweight (x) . | . . . . . . 1 . . . . . . . . . . . . . . . . . . . Largest Inventory Capacity 20 | 8 8 8 10 20 20 20 20 20 5 5 5 5 5 5 5 5 5 5 5 5 5 5 5 5 5 Average Capacity 10 | 7 8 8 8 11 20 20 20 17 5 5 5 5 5 5 5 5 5 5 5 5 5 5 5 5 5 Most Carried 20 | 4 8 8 9 10 17 20 20 18 5 5 5 5 5 5 5 5 5 5 5 5 5 5 4 2 4 Average Carried 8 | 2 6 7 7 9 9 18 18 14 4 4 4 4 4 5 4 4 4 4 4 5 4 5 2 2 2 Final Capacity 20 | 8 8 8 10 20 20 20 20 5 5 5 5 5 5 5 5 5 5 5 5 5 5 5 5 5 5 Final Carried 19 | 4 8 8 9 10 16 19 16 5 5 5 5 4 5 5 5 4 5 5 5 5 5 5 2 2 4 Class Distribution -------------------- 36% | Mutant 16% | Scavenger-Mutant 14% | Scavenger-Sprinter 11% | Scout 5% | Commander-Mutant 5% | Sprinter Dominant Class ---------------- Mutant | -10/Materials Mutant | -10/Mines Mutant | -9/Materials Mutant | -9/Mines Mutant | -8/Materials Scavenger-Mutant | -8/Storage Scavenger-Mutant | -7/Factory Mutant | -7/Waste Mutant | -7/Factory Scout | -6/Factory Scout | -6/Lower Caves Scout | -6/Lower Caves Ninja | -5/Factory Scout | -5/Waste Scout | -5/Factory Tank | -5/Extension Tank | -5/Cetus Scavenger-Mutant | -4/Factory Scavenger-Sprinter | -4/Upper Caves Sprinter | -4/Upper Caves Scavenger-Sprinter | -4/Warlord Scavenger-Sprinter | -3/Proximity Caves Scavenger-Ninja | -3/Research Scavenger-Ninja | -2/Research Scavenger-Sprinter | -1/Access Resources | -11 -10 -10 -9 -9 -8 -8 -7 -7 -7 -6 -6 -6 -5 -5 -5 -5 -5 -4 -4 -4 -4 -3 -3 -2 -1 ----------- Run | Yrd Mat Min Mat Min Mat Sto Fac Was Fac Fac Low Low Fac Was Fac Ext Cet Fac Upp Upp War Pro Res Res Acc Matter Collected 4259 | 143 189 105 504 149 505 155 360 4 . 374 53 20 . 348 315 181 13 420 57 52 262 . . . 50 Remotely . | . . . . . . . . . . . . . . . . . . . . . . . . . . Salvage Created 4594 | . 263 109 1065 14 616 748 602 . 71 179 . . . . . 20 . 441 . 22 10 85 . . 349 Parts 273 | . 17 6 70 2 30 46 34 . 2 8 . . . . . 2 . 31 . 1 . 8 . . 16 Haulers Intercepted 2 | . . . 1 . . . . . . . . . . . . . . . . . . . . . 1 Recyclers Shooed 6 | . . . . . 1 1 2 . . . . . . . 2 . . . . . . . . . . Parts Field Recycled . | . . . . . . . . . . . . . . . . . . . . . . . . . . Retrieved Matter . | . . . . . . . . . . . . . . . . . . . . . . . . . . Parts Self-Destructed 9 | . . . . . . . . . . . . . . . . . . . 1 1 . 7 . . . Prevented 4 | . . . . . . . . . . . . . . . . . . . . . . 4 . . . Kills | -11 -10 -10 -9 -9 -8 -8 -7 -7 -7 -6 -6 -6 -5 -5 -5 -5 -5 -4 -4 -4 -4 -3 -3 -2 -1 ------- Run | Yrd Mat Min Mat Min Mat Sto Fac Was Fac Fac Low Low Fac Was Fac Ext Cet Fac Upp Upp War Pro Res Res Acc Combat Hostiles Destroyed 105 | . 8 4 32 . 16 12 11 . 1 1 . . . . . 1 . 11 . 1 1 3 . . 3 Melee 26 | . . . 3 . 2 8 5 . 1 . . . . . . . . . . . 1 3 . . 3 Guns 16 | . 7 . . . . 3 1 . . . . . . . . 1 . 3 . 1 . . . . . Cannons 9 | . 1 . . . . . 2 . . . . . . . . . . 6 . . . . . . . AOE 48 | . . 4 26 . 14 1 3 . . . . . . . . . . . . . . . . . . Classes Destroyed 15 | . 2 1 9 1 1 . 1 . . . . . . . . . . . . . . . . . . Worker 8 | . . . 5 . . 1 . . . 1 . . . . . . . . . . . . . . 1 Builder 7 | . . . 2 . . 2 . . . . . . . . . . . 2 . . . . . . 1 Tunneler 3 | . . . . 1 1 . . . . 1 . . . . . . . . . . . . . . . Hauler 2 | . . . 1 . . . . . . . . . . . . . . . . . . . . . 1 Recycler 9 | . . . 2 . 2 3 . . . 1 . . . . . . . . . . . . . . 1 Mechanic 3 | . . . 3 . . . . . . . . . . . . . . . . . . . . . . Operator 1 | . . . 1 . . . . . . . . . . . . . . . . . . . . . . Watcher 5 | . . . 3 . 1 . . . . . . . . . . 1 . . . . . . . . . Swarmer 24 | . 3 . 3 . 4 2 . . . . . . . . . . . 4 . 1 1 3 . . 3 Grunt 45 | . 5 2 22 . 5 5 5 . . 1 . . . . . . . . . . . . . . . Brawler 2 | . . . 1 . 1 . . . . . . . . . . . . . . . . . . . . Duelist 1 | . . . 1 . . . . . . . . . . . . . . . . . . . . . . Sentry 20 | . . 2 5 . 2 5 3 . 1 . . . . . . 1 . 1 . . . . . . . Hunter 6 | . . . . . 4 . . . . . . . . . . . . 2 . . . . . . . Programmer 8 | . . . . . . . 4 . . . . . . . . . . 4 . . . . . . . Best Kill Streak 18 | . 5 2 18 1 5 4 2 . 1 2 . . . . . 1 . 4 . 1 1 3 . . 4 Combat Bots Only 8 | . 5 2 8 . 4 3 2 . 1 1 . . . . . 1 . 4 . 1 1 3 . . 2 Max Kills in Single Turn 4 | . 1 1 4 1 2 1 1 . 1 1 . . . . . 1 . 1 . 1 1 1 . . 1 Gunslinging . | . . . . . . . . . . . . . . . . . . . . . . . . . . Exploded 3 | . . 1 3 . 2 1 1 . . . . . . . . . . . . . . . . . . Melee 1 | . . . 1 . 1 1 1 . 1 . . . . . . . . . . . 1 1 . . 1 Uniques/NPCs Destroyed . | . . . . . . . . . . . . . . . . . . . . . . . . . . Combat | -11 -10 -10 -9 -9 -8 -8 -7 -7 -7 -6 -6 -6 -5 -5 -5 -5 -5 -4 -4 -4 -4 -3 -3 -2 -1 -------- Run | Yrd Mat Min Mat Min Mat Sto Fac Was Fac Fac Low Low Fac Was Fac Ext Cet Fac Upp Upp War Pro Res Res Acc Hostile Shots Fired 1129 | . 72 21 136 1 66 79 175 5 17 68 . 5 5 . 4 24 28 131 14 20 11 22 4 2 219 Missed 437 | . 20 9 41 1 15 17 58 . 11 40 . 4 4 . 2 9 11 56 7 11 5 10 3 1 102 Damage Taken 11706 | . 574 206 1386 40 1277 932 1399 189 78 252 . 16 16 . 61 280 470 1276 108 138 103 238 30 27 2610 Core 2929 | . 100 53 342 . 64 44 138 140 13 39 . 16 . . . 17 103 159 19 21 13 46 . . 1602 Absorbed by Shields 79 | . . . . . . . . . . . . . . . . . . 14 40 25 . . . . . Redirected to Shielding 163 | . . . . . . . . . . . . . . . . . . 35 . 28 15 58 27 . . Ignored by Resistances 7 | . . . . . . . . . . 3 . 2 2 . . . . . . . . . . . . Regen/Repaired (Parts) 281 | . . . 62 . . 218 . . . . . . . . . . . . . . 1 . . . . Core Remaining (%) 74 | 100 . 38 . 14 . 80 . . 58 . . 93 . . . . 88 . . . . 77 100 100 . Volleys Fired 227 | . 35 8 59 4 27 7 24 5 . . . . 1 2 . 5 4 41 . 2 3 . . . . Largest 3 | . 2 1 2 1 1 1 2 2 . . . . 1 3 . 3 3 3 . 1 2 . . . . Hottest 222 | . 120 30 120 33 33 50 110 149 . . . . 65 173 . 131 165 222 . 88 128 . . . . Shots Fired 358 | . 69 8 67 4 27 7 34 10 1 . . . 1 6 . 15 12 89 . 2 6 . . . . Gun 151 | . 56 . 3 . . 5 13 5 1 . . . 1 6 . 15 8 30 . 2 6 . . . . Cannon 98 | . 13 . 13 . . . 8 5 . . . . . . . . 4 55 . . . . . . . Launcher 103 | . . 8 51 4 27 2 11 . . . . . . . . . . . . . . . . . . Special 6 | . . . . . . . 2 . . . . . . . . . . 4 . . . . . . . Kinetic 113 | . 28 . . . . . 8 5 . . . . . 2 . 10 8 52 . . . . . . . Thermal 93 | . 13 . 16 . . . 6 5 . . . . . 2 . 5 4 34 . 2 6 . . . . Explosive 92 | . . 8 51 4 27 2 . . . . . . . . . . . . . . . . . . . Electromagnetic 58 | . 28 . . . . 5 18 . 1 . . . 1 2 . . . 3 . . . . . . . Robot Hit Streak 21 | . 11 5 21 7 5 5 10 3 . . . . 2 4 . 4 4 10 . 12 13 . . . . Robot Miss Streak 4 | . 4 . 3 2 2 3 3 1 . . . . . 2 . 2 2 3 . . 3 . . . . Penetration Max . | . . . . . . . . . . . . . . . . . . . . . . . . . . Secondary Targets 2 | . 2 . . . . . . . . . . . . . . . . . . . . . . . . Max Gunslinging Chain 1 | . 1 . . . . . . . . . . . . . . . . . . . . . . . . Shots Hit Robots 294 | . 40 4 48 2 21 34 42 6 1 13 . . 1 4 . 10 7 45 . 2 3 3 . . 8 Core Hits 249 | . 17 11 84 4 35 19 36 2 1 3 . . . . . 5 4 19 . 1 1 2 . . 5 Critical Kills 5 | . . . 2 . . . . . 1 . . . . . . . . 2 . . . . . . . Critical Parts Destroyed 5 | . . . 3 . . . . . . 2 . . . . . . . . . . . . . . . Critical Strikes 26 | . . . 6 . 1 4 2 1 1 2 . . . . . . . 3 . . 1 1 . . 4 Burn 2 | . . . 1 . . . . . . . . . . . . . . 1 . . . . . . . Meltdown 2 | . . . . . . . . . . . . . . . . . . 2 . . . . . . . Destroy 1 | . . . . . . . . 1 . . . . . . . . . . . . . . . . . Smash 8 | . . . 5 . . . . . 1 2 . . . . . . . . . . . . . . . Sever 7 | . . . . . 1 4 2 . . . . . . . . . . . . . . . . . . Sunder 6 | . . . . . . . . . . . . . . . . . . . . . 1 1 . . 4 Melee Attacks 125 | . . . 18 . 12 40 23 . 1 14 . . . . . . . . . . 1 3 . . 13 Impact 30 | . . . 18 . 3 . . . 1 8 . . . . . . . . . . . . . . . Slashing 73 | . . . . . 9 40 23 . . 1 . . . . . . . . . . . . . . . Piercing 5 | . . . . . . . . . . 5 . . . . . . . . . . . . . . . Entropic 17 | . . . . . . . . . . . . . . . . . . . . . 1 3 . . 13 Sneak Attacks 16 | . . . 1 . 2 5 . . . 4 . . . . . . . . . . . . . . 4 Combat Hostiles . | . . . . . . . . . . . . . . . . . . . . . . . . . . Follow-up Attacks 1 | . . . . . . . . . . 1 . . . . . . . . . . . . . . . Damage Inflicted 13688 | . 538 308 3112 196 2025 1248 1990 248 33 611 . . 23 90 56 213 160 1388 . 54 141 301 . . 953 Guns 1625 | . 364 . 50 . . 85 103 81 . . . . 23 90 . 200 102 447 . 54 26 . . . . Cannons 1666 | . 106 . 213 . . . 181 167 . . . . . . . . 58 941 . . . . . . . Explosions 5816 | . 68 308 2422 196 1627 77 1118 . . . . . . . . . . . . . . . . . . Melee 4502 | . . . 427 . 398 1086 586 . 33 611 . . . . . . . . . . 115 301 . . 945 Ramming 79 | . . . . . . . 2 . . . . . . . 56 13 . . . . . . . . 8 Kinetic 1596 | . 158 . . . . . 181 167 . . . . . 26 . 116 118 830 . . . . . . . Thermal 1926 | . 174 . 263 . . . 659 81 . . . . . 42 . 84 42 501 . 54 26 . . . . Explosive 4630 | . . 308 2422 196 1627 77 . . . . . . . . . . . . . . . . . . . Electromagnetic 955 | . 206 . . . . 85 562 . . . . . 23 22 . . . 57 . . . . . . . Impact 947 | . . . 427 . 108 . . . 33 379 . . . . . . . . . . . . . . . Slashing 2029 | . . . . . 290 1086 586 . . 67 . . . . . . . . . . . . . . . Piercing 165 | . . . . . . . . . . 165 . . . . . . . . . . . . . . . Entropic 1361 | . . . . . . . . . . . . . . . . . . . . . 115 301 . . 945 Highest Corruption 33 | . 1 1 . . . . 15 31 33 . . . . . . . . 1 2 2 2 . . . . Average Corruption 9 | . 1 1 . . . . 11 26 32 . . . . . . . . 1 1 2 2 . . . . Corruption Purged . | . . . . . . . . . . . . . . . . . . . . . . . . . . Corruption Blocked 7 | . . . . . . . . . . . . . . . . . . . . . 7 . . . . Effects 54 | . 1 1 . . . . 20 10 17 . . . . . . . . 1 1 3 . . . . . Message Errors 9 | . . . . . . . 5 2 2 . . . . . . . . . . . . . . . . Matter Fused 13 | . . 1 . . . . 4 5 2 . . . . . . . . 1 . . . . . . . Heat Flow Errors 7 | . 1 . . . . . 1 1 2 . . . . . . . . . . 2 . . . . . Energy Discharges 9 | . . . . . . . 5 . 3 . . . . . . . . . . 1 . . . . . Data Loss (minor) 6 | . . . . . . . 1 1 3 . . . . . . . . . 1 . . . . . . Data Loss (major) 3 | . . . . . . . 1 1 1 . . . . . . . . . . . . . . . . Misfires 1 | . . . . . . . . . 1 . . . . . . . . . . . . . . . . Alerts 4 | . . . . . . . 2 . 2 . . . . . . . . . . . . . . . . Misdirections 1 | . . . . . . . . . 1 . . . . . . . . . . . . . . . . Weapon Failures 1 | . . . . . . . 1 . . . . . . . . . . . . . . . . . . Overload Shots . | . . . . . . . . . . . . . . . . . . . . . . . . . . Overflow Damage 927 | . 24 . 136 . 99 112 152 . . 115 . . . . . . . 31 . . . 57 . . 201 Projectiles 39 | . 8 . . . . . . . . . . . . . . . . 31 . . . . . . . Explosions 214 | . 16 . 5 . 27 14 152 . . . . . . . . . . . . . . . . . . Melee 674 | . . . 131 . 72 98 . . . 115 . . . . . . . . . . . 57 . . 201 Knockbacks 6 | . . . 4 . . . 1 . . . . . . . . . 1 . . . . . . . . Impact 4 | . . . 4 . . . . . . . . . . . . . . . . . . . . . . Kinetic 2 | . . . . . . . 1 . . . . . . . . . 1 . . . . . . . . Secondary . | . . . . . . . . . . . . . . . . . . . . . . . . . . Self-Inflicted Damage 596 | . 40 43 170 40 62 43 161 . . . . . . . 27 6 . . . . . . . . 4 Shots 19 | . 1 4 6 1 2 2 3 . . . . . . . . . . . . . . . . . . Rammed 7 | . . . . . . . . . . . . . . . 4 2 . . . . . . . . 1 Targets Rammed 8 | . . . . . . . 1 . . . . . . . 4 2 . . . . . . . . 1 Kicked 1 | . . . . . . . 1 . . . . . . . . . . . . . . . . . . Crushed . | . . . . . . . . . . . . . . . . . . . . . . . . . . Highest Temperature 408 | . 324 47 399 24 40 20 200 398 203 4 . 5 33 243 . 300 408 176 . 215 112 32 163 112 98 Average Temperature 88 | . 87 24 104 12 14 9 47 171 79 4 . 3 17 126 . 155 243 74 . 83 55 12 60 48 47 Received Heat Transfer 2067 | . 207 102 579 . 81 333 273 . 42 93 . 9 9 . . 36 45 24 6 12 . 9 9 9 189 Effects 7 | . 1 . 1 . . . . 2 . . . . . . . 1 2 . . . . . . . . Shutdowns 2 | . . . . . . . . 1 . . . . . . . . 1 . . . . . . . . Energy Bleed 2 | . . . . . . . . 1 . . . . . . . 1 . . . . . . . . . Interference 1 | . 1 . . . . . . . . . . . . . . . . . . . . . . . . Short Circuit 1 | . . . . . . . . . . . . . . . . . 1 . . . . . . . . Damage (minor) 1 | . . . 1 . . . . . . . . . . . . . . . . . . . . . . Siege Activations . | . . . . . . . . . . . . . . . . . . . . . . . . . . Robots Corrupted . | . . . . . . . . . . . . . . . . . . . . . . . . . . Combat Hostiles . | . . . . . . . . . . . . . . . . . . . . . . . . . . Parts Fried 10 | . . . 6 . 1 . 2 . . 1 . . . . . . . . . . . . . . . Impact Corruptions 13 | . . . 7 . 2 . . . . 4 . . . . . . . . . . . . . . . Robots Melted 3 | . . . 1 . . . . . . . . . . . . . . 2 . . . . . . . Combat Hostiles 3 | . . . 1 . . . . . . . . . . . . . . 2 . . . . . . . Parts Melted 5 | . . . 3 . . . . . . . . . . . . . . 2 . . . . . . . Heat Transferred 2722 | . 322 . 629 . . . 598 111 . . . . . 74 . 148 74 592 . 100 74 . . . . Parts Sabotaged . | . . . . . . . . . . . . . . . . . . . . . . . . . . Parts Stolen . | . . . . . . . . . . . . . . . . . . . . . . . . . . Parts Stripped . | . . . . . . . . . . . . . . . . . . . . . . . . . . Power Chain Reactions 4 | . 1 . . . . . 3 . . . . . . . . . . . . . . . . . . Alert | -11 -10 -10 -9 -9 -8 -8 -7 -7 -7 -6 -6 -6 -5 -5 -5 -5 -5 -4 -4 -4 -4 -3 -3 -2 -1 ------- Run | Yrd Mat Min Mat Min Mat Sto Fac Was Fac Fac Low Low Fac Was Fac Ext Cet Fac Upp Upp War Pro Res Res Acc Peak Influence 1092 | . 279 178 961 465 654 603 613 172 348 260 . . 125 43 1092 894 507 497 . . . . 109 120 389 Initial 534 | . . 36 68 374 183 172 273 172 78 170 . . 110 43 30 534 488 266 . . . . 74 60 72 Average 362 | . 131 104 505 433 427 342 458 157 143 216 . . 110 43 551 721 492 350 . . . . 82 87 201 Maximum Alert Level 4 | . 1 . 3 2 2 2 2 . 1 1 . . . . 4 3 2 2 . . . . . . 1 Low Security (%) 26 | 100 61 100 13 . 13 15 . 100 87 23 . . 100 100 15 . . . . . . . 100 100 44 Level 1 35 | . 38 . 30 33 18 59 33 . 12 76 . . . . 25 . . 82 . . . . . . 55 Level 2 29 | . . . 23 66 67 24 66 . . . . . . . 23 37 100 17 . . . . . . . Level 3 8 | . . . 32 . . . . . . . . . . . 36 62 . . . . . . . . . Level 4 . | . . . . . . . . . . . . . . . . . . . . . . . . . . Level 5 . | . . . . . . . . . . . . . . . . . . . . . . . . . . High Security . | . . . . . . . . . . . . . . . . . . . . . . . . . . Max Security . | . . . . . . . . . . . . . . . . . . . . . . . . . . Squads Dispatched 30 | . 3 . 5 . 2 1 6 . 1 2 . . . . 3 1 . 3 . . . . . . 3 Investigation 4 | . 1 . 1 . . . . . . . . . . . 1 . . 1 . . . . . . . Extermination 3 | . . . . . . . 1 . 1 . . . . . . . . 1 . . . . . . . Reinforcement 17 | . 2 . 2 . 2 1 2 . . 2 . . . . 1 1 . 1 . . . . . . 3 Assault 2 | . . . 2 . . . . . . . . . . . . . . . . . . . . . . Garrison 4 | . . . . . . . 3 . . . . . . . 1 . . . . . . . . . . Intercept . | . . . . . . . . . . . . . . . . . . . . . . . . . . Searches Triggered . | . . . . . . . . . . . . . . . . . . . . . . . . . . Construction Impeded 2 | . . . 1 . . . . . . . . . . . . 1 . . . . . . . . . Haulers Reinforced 2 | . . . . . . . . . . 1 . . . . 1 . . . . . . . . . . Active Scanning Responses . | . . . . . . . . . . . . . . . . . . . . . . . . . . Cargo Convoy Interrupts . | . . . . . . . . . . . . . . . . . . . . . . . . . . Stealth | -11 -10 -10 -9 -9 -8 -8 -7 -7 -7 -6 -6 -6 -5 -5 -5 -5 -5 -4 -4 -4 -4 -3 -3 -2 -1 --------- Run | Yrd Mat Min Mat Min Mat Sto Fac Was Fac Fac Low Low Fac Was Fac Ext Cet Fac Upp Upp War Pro Res Res Acc Distress Signals 15 | . 1 . 5 . . 3 . . . 1 . . . . 1 3 1 . . . . . . . . Communications Jammed . | . . . . . . . . . . . . . . . . . . . . . . . . . . Distress Signals . | . . . . . . . . . . . . . . . . . . . . . . . . . . Times Spotted 330 | . 19 4 47 2 23 25 24 5 14 8 . 4 1 . 13 10 5 24 8 6 26 7 3 1 51 Peak Tracking Total 23 | . 8 2 7 2 5 4 5 5 9 5 . 4 1 . 5 4 5 7 7 4 16 4 4 1 23 Tactical Retreats 37 | . 2 . 2 . 1 2 1 . 6 1 . 1 1 . . 1 . 4 3 3 2 2 . . 5 Traps | -11 -10 -10 -9 -9 -8 -8 -7 -7 -7 -6 -6 -6 -5 -5 -5 -5 -5 -4 -4 -4 -4 -3 -3 -2 -1 ------- Run | Yrd Mat Min Mat Min Mat Sto Fac Was Fac Fac Low Low Fac Was Fac Ext Cet Fac Upp Upp War Pro Res Res Acc Traps Triggered 7 | . . . . . 1 1 2 . 1 . . . 1 . 1 . . . . . . . . . . Indirectly . | . . . . . . . . . . . . . . . . . . . . . . . . . . Trap Hack Attempts . | . . . . . . . . . . . . . . . . . . . . . . . . . . Triggered . | . . . . . . . . . . . . . . . . . . . . . . . . . . Disarmed 6 | . . . . . . 6 . . . . . . . . . . . . . . . . . . . Reprogrammed . | . . . . . . . . . . . . . . . . . . . . . . . . . . Reused . | . . . . . . . . . . . . . . . . . . . . . . . . . . Traps Extracted . | . . . . . . . . . . . . . . . . . . . . . . . . . . Installed . | . . . . . . . . . . . . . . . . . . . . . . . . . . Triggered 21 | . . . . . . . . . . . . . . . . . . . 1 . 19 1 . . . Machines | -11 -10 -10 -9 -9 -8 -8 -7 -7 -7 -6 -6 -6 -5 -5 -5 -5 -5 -4 -4 -4 -4 -3 -3 -2 -1 ---------- Run | Yrd Mat Min Mat Min Mat Sto Fac Was Fac Fac Low Low Fac Was Fac Ext Cet Fac Upp Upp War Pro Res Res Acc Machines Disabled 31 | . 1 2 2 . 5 . 5 . . . . . . . 10 4 . 2 . . . . . . . Max in Single Turn 4 | . 1 2 1 . 1 . 4 . . . . . . . . . . 1 . . . . . . . Machines Repaired . | . . . . . . . . . . . . . . . . . . . . . . . . . . Machines Dismantled 1 | . . . . . . . . . . . . . . . . . . 1 . . . . . . . Machines Sabotaged . | . . . . . . . . . . . . . . . . . . . . . . . . . . Overloaded Fab Kills . | . . . . . . . . . . . . . . . . . . . . . . . . . . Hacking | -11 -10 -10 -9 -9 -8 -8 -7 -7 -7 -6 -6 -6 -5 -5 -5 -5 -5 -4 -4 -4 -4 -3 -3 -2 -1 --------- Run | Yrd Mat Min Mat Min Mat Sto Fac Was Fac Fac Low Low Fac Was Fac Ext Cet Fac Upp Upp War Pro Res Res Acc Machines Accessed 36 | . 2 . 7 1 3 7 . . . . . . . . 4 . . 1 . . 10 1 . . . Terminals 16 | . 2 . 4 1 2 4 . . . . . . . . 1 . . 1 . . . 1 . . . Fabricators 1 | . . . . . . . . . . . . . . . 1 . . . . . . . . . . Repair Stations 2 | . . . 1 . . 1 . . . . . . . . . . . . . . . . . . . Recycling Units 4 | . . . 1 . . 2 . . . . . . . . 1 . . . . . . . . . . Scanalyzers 3 | . . . 1 . 1 . . . . . . . . . 1 . . . . . . . . . . Garrison Access . | . . . . . . . . . . . . . . . . . . . . . . . . . . Total Hacks 63 | . 7 . 13 1 4 12 . . . . . . . . 7 . . 2 . . 16 1 . . . Successful 45 | . 1 . 10 1 1 8 . . . . . . . . 7 . . . . . 16 1 . . . Failed 18 | . 6 . 3 . 3 4 . . . . . . . . . . . 2 . . . . . . . Catastrophic 2 | . . . . . 1 1 . . . . . . . . . . . . . . . . . . . Database Lockouts . | . . . . . . . . . . . . . . . . . . . . . . . . . . Manual 3 | . . . . . . . . . . . . . . . . . . . . . 3 . . . . Terminals 28 | . 7 . 7 1 3 6 . . . . . . . . 1 . . 2 . . . 1 . . . Fabricators 2 | . . . . . . . . . . . . . . . 2 . . . . . . . . . . Repair Stations 5 | . . . 2 . . 3 . . . . . . . . . . . . . . . . . . . Recycling Units 5 | . . . 1 . . 3 . . . . . . . . 1 . . . . . . . . . . Scanalyzers 7 | . . . 3 . 1 . . . . . . . . . 3 . . . . . . . . . . Garrison Access . | . . . . . . . . . . . . . . . . . . . . . . . . . . Terminal Hacks 29 | . 1 . 4 1 1 4 . . . . . . . . 1 . . . . . 16 1 . . . Record 12 | . . . . . . . . . . . . . . . . . . . . . 11 1 . . . Prototype ID Bank 7 | . 1 . 1 . . 1 . . . . . . . . . . . . . . 4 . . . . Open Door 2 | . . . . . . 1 . . . . . . . . . . . . . . 1 . . . . Open DSF 1 | . . . . . . . . . . . . . . . 1 . . . . . . . . . . Level Access Points 1 | . . . . 1 . . . . . . . . . . . . . . . . . . . . . Emergency Access Points 1 | . . . 1 . . . . . . . . . . . . . . . . . . . . . . Disarm Traps 1 | . . . . . . 1 . . . . . . . . . . . . . . . . . . . Dispatch Records 1 | . . . . . . 1 . . . . . . . . . . . . . . . . . . . Maintenance Status 1 | . . . . . 1 . . . . . . . . . . . . . . . . . . . . Investigation Status 1 | . . . 1 . . . . . . . . . . . . . . . . . . . . . . Hauler Manifests 1 | . . . 1 . . . . . . . . . . . . . . . . . . . . . . Fabricator Hacks 2 | . . . . . . . . . . . . . . . 2 . . . . . . . . . . Load Schematic 1 | . . . . . . . . . . . . . . . 1 . . . . . . . . . . Build 1 | . . . . . . . . . . . . . . . 1 . . . . . . . . . . Repair Station Hacks 4 | . . . 2 . . 2 . . . . . . . . . . . . . . . . . . . Scan Component 2 | . . . 1 . . 1 . . . . . . . . . . . . . . . . . . . Repair 2 | . . . 1 . . 1 . . . . . . . . . . . . . . . . . . . Recycling Unit Hacks 4 | . . . 1 . . 2 . . . . . . . . 1 . . . . . . . . . . Report Inventory 4 | . . . 1 . . 2 . . . . . . . . 1 . . . . . . . . . . Scanalyzer 6 | . . . 3 . . . . . . . . . . . 3 . . . . . . . . . . Insert Component 2 | . . . 1 . . . . . . . . . . . 1 . . . . . . . . . . Analyze 4 | . . . 2 . . . . . . . . . . . 2 . . . . . . . . . . Garrison Access Hacks . | . . . . . . . . . . . . . . . . . . . . . . . . . . Unauthorized Hacks . | . . . . . . . . . . . . . . . . . . . . . . . . . . Terminals . | . . . . . . . . . . . . . . . . . . . . . . . . . . Fabricators . | . . . . . . . . . . . . . . . . . . . . . . . . . . Repair Stations . | . . . . . . . . . . . . . . . . . . . . . . . . . . Recycling Units . | . . . . . . . . . . . . . . . . . . . . . . . . . . Scanalyzers . | . . . . . . . . . . . . . . . . . . . . . . . . . . Garrison Access . | . . . . . . . . . . . . . . . . . . . . . . . . . . Data Cores Recovered 1 | . . . 1 . . . . . . . . . . . . . . . . . . . . . . Used . | . . . . . . . . . . . . . . . . . . . . . . . . . . Hacking Detections 16 | . 2 . 4 . 1 5 . . . . . . . . 3 . . 1 . . . . . . . Full Trace Events 5 | . 1 . 1 . . 1 . . . . . . . . 1 . . 1 . . . . . . . Feedback Events . | . . . . . . . . . . . . . . . . . . . . . . . . . . Feedback Blocked . | . . . . . . . . . . . . . . . . . . . . . . . . . . Robot Schematics Acquired . | . . . . . . . . . . . . . . . . . . . . . . . . . . Robots Built . | . . . . . . . . . . . . . . . . . . . . . . . . . . Authchips . | . . . . . . . . . . . . . . . . . . . . . . . . . . Time . | . . . . . . . . . . . . . . . . . . . . . . . . . . Total Robot Build Rating . | . . . . . . . . . . . . . . . . . . . . . . . . . . Part Schematics Acquired 2 | . . . 1 . . . . . . . . . . . 1 . . . . . . . . . . Parts Built . | . . . . . . . . . . . . . . . . . . . . . . . . . . Authchips . | . . . . . . . . . . . . . . . . . . . . . . . . . . Time 67 | . . . . . . . . . . . . . . . 67 . . . . . . . . . . Total Part Build Rating . | . . . . . . . . . . . . . . . . . . . . . . . . . . Parts Repaired 2 | . . . 1 . . 1 . . . . . . . . . . . . . . . . . . . Time 64 | . . . 26 . . 38 . . . . . . . . . . . . . . . . . . . Parts Recycled . | . . . . . . . . . . . . . . . . . . . . . . . . . . Recycled Matter . | . . . . . . . . . . . . . . . . . . . . . . . . . . Retrieved Matter . | . . . . . . . . . . . . . . . . . . . . . . . . . . Retrieved Components . | . . . . . . . . . . . . . . . . . . . . . . . . . . Parts Scanalyzed 2 | . . . 1 . . . . . . . . . . . 1 . . . . . . . . . . Part Schematics Acquired 2 | . . . 1 . . . . . . . . . . . 1 . . . . . . . . . . Parts Damaged . | . . . . . . . . . . . . . . . . . . . . . . . . . . Bothacking | -11 -10 -10 -9 -9 -8 -8 -7 -7 -7 -6 -6 -6 -5 -5 -5 -5 -5 -4 -4 -4 -4 -3 -3 -2 -1 ------------ Run | Yrd Mat Min Mat Min Mat Sto Fac Was Fac Fac Low Low Fac Was Fac Ext Cet Fac Upp Upp War Pro Res Res Acc Used RIF Installer . | . . . . . . . . . . . . . . . . . . . . . . . . . . Robots Hacked . | . . . . . . . . . . . . . . . . . . . . . . . . . . Non-combat . | . . . . . . . . . . . . . . . . . . . . . . . . . . Combat . | . . . . . . . . . . . . . . . . . . . . . . . . . . Robot Hacks Applied . | . . . . . . . . . . . . . . . . . . . . . . . . . . Relay Couplers Released . | . . . . . . . . . . . . . . . . . . . . . . . . . . Fabnet Peak Effective % . | . . . . . . . . . . . . . . . . . . . . . . . . . . Robots Rewired . | . . . . . . . . . . . . . . . . . . . . . . . . . . Allies Hacked . | . . . . . . . . . . . . . . . . . . . . . . . . . . Hacks Repelled . | . . . . . . . . . . . . . . . . . . . . . . . . . . Allies | -11 -10 -10 -9 -9 -8 -8 -7 -7 -7 -6 -6 -6 -5 -5 -5 -5 -5 -4 -4 -4 -4 -3 -3 -2 -1 -------- Run | Yrd Mat Min Mat Min Mat Sto Fac Was Fac Fac Low Low Fac Was Fac Ext Cet Fac Upp Upp War Pro Res Res Acc Total Allies 31 | . . . . 1 . 10 . . . . . . . 20 . . . . . . . . . . . Largest Group 20 | . . . . 1 1 10 9 . . . . . . 20 20 11 . . . . . . . . . Highest-Rated Group 751 | . . . . 31 31 173 157 . . . . . . 751 751 523 . . . . . . . . . Highest-Rated Ally 50 | . . . . 31 31 29 29 . . . . . . 50 50 50 . . . . . . . . . Total Orders . | . . . . . . . . . . . . . . . . . . . . . . . . . . Ally Attacks 275 | . . . . 4 . 32 73 . . . . . . . 116 50 . . . . . . . . . Total Damage 6566 | . . . . 62 . 381 938 . . . . . . . 3210 1975 . . . . . . . . . Kills 56 | . . . . 2 . 4 11 . . . . . . . 27 12 . . . . . . . . . Allies Corrupted 1 | . . . . . . . . . . . . . . . . 1 . . . . . . . . . Allies Melted . | . . . . . . . . . . . . . . . . . . . . . . . . . . Intel | -11 -10 -10 -9 -9 -8 -8 -7 -7 -7 -6 -6 -6 -5 -5 -5 -5 -5 -4 -4 -4 -4 -3 -3 -2 -1 ------- Run | Yrd Mat Min Mat Min Mat Sto Fac Was Fac Fac Low Low Fac Was Fac Ext Cet Fac Upp Upp War Pro Res Res Acc Robot Analysis Total . | . . . . . . . . . . . . . . . . . . . . . . . . . . Derelict Logs Recovered 6 | . . . . 1 . . . . . . 1 . . . . . . . 2 2 . . . . . Drone Launches 5 | . . . . . . . . . . . . . . . . . . . . 3 2 . . . . Drone Recoveries 4 | . . . . . . . . . . . . . . . . . . . . 2 2 . . . . Exploration | -11 -10 -10 -9 -9 -8 -8 -7 -7 -7 -6 -6 -6 -5 -5 -5 -5 -5 -4 -4 -4 -4 -3 -3 -2 -1 ------------- Run | Yrd Mat Min Mat Min Mat Sto Fac Was Fac Fac Low Low Fac Was Fac Ext Cet Fac Upp Upp War Pro Res Res Acc Turns Passed 8802 | 52 499 164 1002 270 929 695 823 176 298 384 150 34 110 133 482 208 49 724 166 205 905 85 31 39 189 Spaces Moved 10282 | 32 286 118 571 162 445 315 509 129 491 648 485 111 221 203 699 323 69 893 441 586 1611 255 95 96 488 Core 183 | 6 . . . . . . . 60 44 . . . . . . . . . . . . 1 . . 72 Treads 794 | . . . 115 162 445 72 . . . . . . . . . . . . . . . . . . . Legs 1266 | 26 286 118 456 . . . 311 69 . . . . . . . . . . . . . . . . . Wheels 441 | . . . . . . 243 198 . . . . . . . . . . . . . . . . . . Hover 2234 | . . . . . . . . . 305 . . . 153 203 699 323 69 470 . . 12 . . . . Flight 5364 | . . . . . . . . . 142 648 485 111 68 . . . . 423 441 586 1599 254 95 96 416 Fastest Speed 22 | 50 120 120 120 160 160 105 103 50 29 29 29 29 29 50 50 41 41 28 28 28 28 22 22 22 22 Average Speed 62 | 122 120 120 128 160 173 136 123 117 52 46 29 29 43 50 51 46 47 51 28 28 29 24 22 22 30 Slowest Speed 540 | 200 120 120 190 160 240 240 540 260 100 97 29 29 50 50 220 120 53 210 104 28 150 300 22 22 112 Overloaded Moves . | . . . . . . . . . . . . . . . . . . . . . . . . . . Propulsion Burnouts . | . . . . . . . . . . . . . . . . . . . . . . . . . . Robots Hopped 15 | . . . . . . . . . . . . . . . . . . 5 2 . 8 . . . . Cave-ins Triggered . | . . . . . . . . . . . . . . . . . . . . . . . . . . Exploration Rate (%) 38 | 4 36 17 57 38 36 47 13 93 13 21 74 23 6 93 22 45 24 25 70 74 91 51 4 3 17 Regions Visited 25 Branch Regions 11 Pre-discovered Areas 3 | . . 1 . . . . . . . . 1 . . . . . . . 1 . . . . . . Known Exits Taken 12 | . . . . 1 . 1 . . 1 1 1 1 . . 1 1 1 1 1 1 . . . . . Unknown Exits Taken 9 | 1 1 1 1 . 1 . . . . . . . . . . . . . . . 1 1 1 1 . Scrap Searched 11 | . . 1 . 2 . . . . . . 3 1 . . . . . . 3 1 . . . . . Spaces Dug 18 | . . . 12 . . . . . . . . . . . . . . 6 . . . . . . . Terrain Destroyed 555 | . 3 37 236 52 137 12 49 . . . . . . . . . 1 27 . . 1 . . . . Melee . | . . . . . . . . . . . . . . . . . . . . . . . . . . Projectile 29 | . . . . . . . . . . . . . . . . . 1 27 . . 1 . . . . AOE 526 | . 3 37 236 52 137 12 49 . . . . . . . . . . . . . . . . . . Terrain Rammed . | . . . . . . . . . . . . . . . . . . . . . . . . . . Walls Destroyed . | . . . . . . . . . . . . . . . . . . . . . . . . . . Machines Disabled . | . . . . . . . . . . . . . . . . . . . . . . . . . . Actions | -11 -10 -10 -9 -9 -8 -8 -7 -7 -7 -6 -6 -6 -5 -5 -5 -5 -5 -4 -4 -4 -4 -3 -3 -2 -1 --------- Run | Yrd Mat Min Mat Min Mat Sto Fac Was Fac Fac Low Low Fac Was Fac Ext Cet Fac Upp Upp War Pro Res Res Acc Total 12062 | 42 378 132 745 169 555 519 636 140 524 705 493 112 233 228 820 370 75 1053 481 624 2024 273 103 112 516 Wait 1039 | 1 41 3 35 . 39 111 29 . 19 16 . . . 20 104 30 2 80 32 37 400 10 5 16 9 Move 10233 | 31 285 117 570 161 444 314 509 128 490 647 484 110 221 202 698 322 68 882 436 585 1598 254 94 95 488 Hop 11 | . . . . . . . . . . . . . . . . . . 5 2 . 4 . . . . Pick Up 103 | 4 6 1 19 2 12 15 16 2 1 7 2 . 4 . 1 . 1 5 3 . 2 . . . . Fast Attach 104 | 6 5 . 10 . 5 5 5 . 10 8 1 . 2 2 6 4 . 17 2 . 8 3 1 1 3 Attach 49 | . 1 . 6 . 9 3 10 2 1 3 1 1 1 . . 2 . 5 . . 1 . 3 . . Detach 24 | . 2 . 3 . 4 2 1 . 1 2 . 1 . . . 2 . 3 . . 1 . . . 2 Swap 35 | . . 2 8 1 3 2 9 3 . 1 2 . 2 . . . . 2 . . . . . . . Drop 86 | . 3 1 17 1 . 12 9 . 1 8 3 . 2 1 7 3 . 3 6 . 6 3 . . . Fire 227 | . 35 8 59 4 27 7 24 5 . . . . 1 2 . 5 4 41 . 2 3 . . . . Melee 124 | . . . 18 . 12 40 23 . 1 13 . . . . . . . . . . 1 3 . . 13 Ram 7 | . . . . . . . . . . . . . . . 4 2 . . . . . . . . 1 Kick 1 | . . . . . . . 1 . . . . . . . . . . . . . . . . . . Crush . | . . . . . . . . . . . . . . . . . . . . . . . . . . Escape Stasis 8 | . . . . . . 8 . . . . . . . . . . . . . . . . . . . Rewire 1 | . . . . . . . . . . . . . . 1 . . . . . . . . . . . Trap . | . . . . . . . . . . . . . . . . . . . . . . . . . . Miscellaneous 10 | . . . . . . . . . . . . . . . . . . 10 . . . . . . . Route ------- -11/Scrapyard -10/Materials -10/Mines -9/Materials -9/Mines (discovered 2 exits: *Mat x2) -8/Materials (discovered 3 exits: *Fac x2 / *Sto) -8/Storage -7/Factory -7/Waste -7/Factory -6/Factory -6/Lower Caves -6/Lower Caves -5/Factory -5/Waste -5/Factory (discovered 2 exits: [*Upp] / *Ext) -5/Extension (discovered 2 exits: *Fac / *Cet) -5/Cetus -4/Factory (discovered 2 exits: *Upp / [*Arm]) -4/Upper Caves -4/Upper Caves -4/Warlord -3/Proximity Caves -3/Research -2/Research -1/Access History --------- Turn | Location | Event 16 | -11/Scrapyard | Discovered new exit (range 16) 53 | -11/Scrapyard | Entered Materials 294 | -10/Materials | Discovered new exit (range 15) 334 | -10/Materials | Build established: Mutant 552 | -10/Materials | Entered Mines 553 | -10/Mines | Learned location of Storage (-8) 652 | -10/Mines | Discovered new exit (range 12) 673 | -10/Mines | Core integrity fell below 50% 716 | -10/Mines | Entered Materials 716 | -9/Materials | Evolved 2 slots: Propulsion x1, Utility x1 1093 | -9/Materials | Lost 3 parts (2u1w) 1159 | -9/Materials | Core integrity fell below 50% 1185 | -9/Materials | Destroyed 8 combat bots 1287 | -9/Materials | Repaired Beam Cannon 1516 | -9/Materials | First assault squad dispatched 1580 | -9/Materials | Core integrity fell below 20% 1610 | -9/Materials | Destroyed 8 combat bots 1701 | -9/Materials | Discovered new exit (range 12) 1718 | -9/Materials | Entered Mines 1790 | -9/Mines | Received a Mining Laser from a helpful Derelict 1899 | -9/Mines | Discovered new exit (range 10) 1907 | -9/Mines | Learned location of 1 exit from Materials 1988 | -9/Mines | Identified exit to Materials 1988 | -9/Mines | Entered Materials 1988 | -8/Materials | Accompanied by 1 ally 1988 | -8/Materials | Evolved 2 slots: Propulsion x1, Utility x1 1989 | -8/Materials | Identified exit to Factory 2315 | -8/Materials | Lost 6 parts (1p2n2u1w) 2466 | -8/Materials | Discovered exit to Factory (range 10) 2855 | -8/Materials | Discovered new exit (range 8) 2917 | -8/Materials | Entered Storage 3217 | -8/Storage | Repaired Hvy. Armor Plating 3417 | -8/Storage | Build established: Scavenger-Mutant 3460 | -8/Storage | Assisted by bots powering up and referring to "LRC-V3" 3517 | -8/Storage | Discovered exit to Factory (range 16) 3612 | -8/Storage | Entered Factory 3612 | -7/Factory | Accompanied by 9 allies 3612 | -7/Factory | Evolved 2 slots: Propulsion x1, Weapon x1 3738 | -7/Factory | Build established: Commander-Mutant 3932 | -7/Factory | System corruption reached 10% 3938 | -7/Factory | Found Prototype Device 4045 | -7/Factory | Garrison activated, responded to threat 4108 | -7/Factory | Lost 4 allies 4236 | -7/Factory | Build established: Scavenger-Mutant 4435 | -7/Factory | Sucked down chute 4435 | -7/Factory | Entered Waste 4450 | -7/Waste | EMP discharged 4502 | -7/Waste | Spotted C-40 Crusher 4511 | -7/Waste | Spotted C-40 Crusher 4521 | -7/Waste | Spotted C-40 Crusher 4550 | -7/Waste | EMP discharged 4550 | -7/Waste | System corruption reached 30% 4550 | -7/Waste | Crushed by Compactor (1 part destroyed, 1 dropped) 4573 | -7/Waste | Spotted C-40 Crusher 4576 | -7/Waste | Crushed by Compactor (1 part destroyed, 1 dropped) 4578 | -7/Waste | Crushed by Compactor (1 part destroyed, 1 dropped) 4579 | -7/Waste | Crushed by Compactor (1 part destroyed, 2 dropped) 4584 | -7/Waste | Spotted C-40 Crusher 4606 | -7/Waste | Discovered new exit (range 11) 4610 | -7/Waste | Lost 6 parts (3n1u2w) 4611 | -7/Waste | Entered Factory 4714 | -7/Factory | Build established: Mutant 4881 | -7/Factory | Discovered new exit (range 8) 4908 | -7/Factory | Identified exit to Factory 4909 | -7/Factory | Entered another Factory area 4909 | -6/Factory | Evolved 2 slots: Utility x2 5291 | -6/Factory | Discovered new exit (range 7) 5292 | -6/Factory | Identified exit to Lower Caves 5293 | -6/Factory | Entered Lower Caves 5398 | -6/Lower Caves | Encountered a Warlord checkpoint 5423 | -6/Lower Caves | Build established: Scout 5436 | -6/Lower Caves | Discovered new exit (range 7) 5443 | -6/Lower Caves | Identified exit to Lower Caves 5443 | -6/Lower Caves | Entered another Lower Caves area 5473 | -6/Lower Caves | Discovered new exit (range 16) 5477 | -6/Lower Caves | Identified exit to Factory 5477 | -6/Lower Caves | Entered Factory 5477 | -5/Factory | Evolved 2 slots: Propulsion x1, Utility x1 5587 | -5/Factory | Sucked down chute 5587 | -5/Factory | Entered Waste 5588 | -5/Waste | Joined by Warlord forces that had cleared the area 5680 | -5/Waste | Discovered new exit (range 14) 5699 | -5/Waste | Identified exit to Factory 5720 | -5/Waste | Entered Factory 5720 | -5/Factory | Accompanied by 20 allies 6078 | -5/Factory | Lost 3 allies 6117 | -5/Factory | Garrison activated, responded to threat 6147 | -5/Factory | Lost 6 allies 6154 | -5/Factory | Discovered new exit (range 20) 6157 | -5/Factory | Discovered new exit (range 14) 6163 | -5/Factory | Identified exit to Extension 6202 | -5/Factory | Entered Extension 6202 | -5/Extension | Accompanied by 11 allies 6237 | -5/Extension | Spotted B-75 Beast 6250 | -5/Extension | Allies destroyed B-75 Beast 6253 | -5/Extension | Spotted B-75 Beast 6260 | -5/Extension | Allies destroyed B-75 Beast 6313 | -5/Extension | Lost 4 allies 6384 | -5/Extension | Discovered new exit (range 21) 6384 | -5/Extension | Discovered new exit (range 21) 6401 | -5/Extension | Identified exit to Factory 6403 | -5/Extension | Identified exit to Cetus 6410 | -5/Extension | Entered Cetus 6418 | -5/Cetus | Spotted Cetus Guard 6421 | -5/Cetus | Spotted Cetus Guard 6424 | -5/Cetus | Spotted Cetus Guard 6428 | -5/Cetus | Spotted Cetus Guard 6446 | -5/Cetus | Discovered exit to Factory (range 21) 6459 | -5/Cetus | Entered Factory 6459 | -4/Factory | Evolved 2 slots: Propulsion x1, Utility x1 6481 | -4/Factory | Lost 3 parts (1n2u) 6608 | -4/Factory | Lost 3 parts (2n1u) 6722 | -4/Factory | Lost 6 parts (2n3u1w) 6971 | -4/Factory | Lost 6 parts (3n1u2w) 7140 | -4/Factory | Discovered new exit (range 13) 7153 | -4/Factory | Discovered new exit (range 9) 7155 | -4/Factory | Identified exit to Upper Caves 7183 | -4/Factory | Entered Upper Caves 7219 | -4/Upper Caves | Attracted the attention of an 0b10 outpost 7259 | -4/Upper Caves | Build established: Scavenger-Sprinter 7322 | -4/Upper Caves | Learned Research emergency access door positions 7332 | -4/Upper Caves | Encountered a Warlord checkpoint 7346 | -4/Upper Caves | Discovered new exit (range 13) 7349 | -4/Upper Caves | Identified exit to Upper Caves 7349 | -4/Upper Caves | Entered another Upper Caves area 7351 | -4/Upper Caves | Learned Research non-interactive machine intel 7437 | -4/Upper Caves | Attracted the attention of an 0b10 checkpoint 7532 | -4/Upper Caves | Learned Research stockpile data 7551 | -4/Upper Caves | Discovered new exit (range 13) 7554 | -4/Upper Caves | Identified exit to Warlord 7554 | -4/Upper Caves | Entered Warlord 7567 | -4/Warlord | System corruption cleaned by Quarantine Array 7596 | -4/Warlord | Met Warlord 7616 | -4/Warlord | Warlord's base attacked by MAIN.C 7644 | -4/Warlord | Build established: Sprinter 7669 | -4/Warlord | Found Prototype Energy Gun 7669 | -4/Warlord | Identified Vortex Rail 7673 | -4/Warlord | Found Prototype Energy Gun 7673 | -4/Warlord | Identified Vortex Rifle 7681 | -4/Warlord | Found Prototype Piercing Weapon 7681 | -4/Warlord | Identified Vortex Lance 7766 | -4/Warlord | Found Prototype Special Weapon 7766 | -4/Warlord | Identified RU-N14's Throwing Claymores v3 7783 | -4/Warlord | Learned Armory stockpile data 7783 | -4/Warlord | Learned 4 Research zone layouts 7783 | -4/Warlord | Learned 4 Access zone layouts 7783 | -4/Warlord | Learned 4 Command zone layouts 7786 | -4/Warlord | Lost 3 allies 7952 | -4/Warlord | Spotted Striker 7966 | -4/Warlord | Warlord forces counterattacked 7985 | -4/Warlord | Lost 4 allies 8023 | -4/Warlord | Build established: Scavenger-Sprinter 8100 | -4/Warlord | Lost 3 allies 8239 | -4/Warlord | Spotted Executioner 8291 | -4/Warlord | Warlord base infiltrated, sounded retreat 8292 | -4/Warlord | Enhanced Grunt warped into view 8292 | -4/Warlord | Enhanced Grunt warped into view 8292 | -4/Warlord | Enhanced Grunt warped into view 8292 | -4/Warlord | Enhanced Demolisher warped into view 8292 | -4/Warlord | Enhanced Demolisher warped into view 8292 | -4/Warlord | Enhanced Demolisher warped into view 8344 | -4/Warlord | Spotted Executioner 8370 | -4/Warlord | Spotted Executioner 8381 | -4/Warlord | Spotted Striker 8381 | -4/Warlord | Spotted Striker 8385 | -4/Warlord | Spotted Executioner 8430 | -4/Warlord | Lost 17 allies 8450 | -4/Warlord | Spotted Striker 8451 | -4/Warlord | Discovered new exit (range 9) 8459 | -4/Warlord | Entered Proximity Caves 8463 | -3/Proximity Caves | Spotted B-86 Titan 8541 | -3/Proximity Caves | Discovered new exit (range 16) 8544 | -3/Proximity Caves | Entered Research 8544 | -3/Research | Evolved 2 slots: Power x1, Utility x1 8548 | -3/Research | Loaded intel: 75 non-interactive machine locations 8565 | -3/Research | Discovered new exit (range 19) 8575 | -3/Research | Entered another Research area 8575 | -2/Research | Evolved 2 slots: Utility x1, Weapon x1 8581 | -2/Research | Discovered new exit (range 12) 8614 | -2/Research | Entered Access 8614 | -1/Access | Evolved 2 slots: Utility x2 8716 | -1/Access | Lost 7 parts (1p3n2u1w) 8782 | -1/Access | Spotted B-99 Colossus 8794 | -1/Access | Core integrity fell below 50% 8800 | -1/Access | Spotted B-99 Colossus 8801 | -1/Access | Core integrity fell below 20% 8803 | -1/Access | Destroyed by G-73 Enforcer with Heavy Laser Last Messages --------------- Xenon Bombardment Thruster destroyed. K-01 Serf collects debris. Slug penetrates Wall. Penetrated by Slug. R-10 Processor collects Lgt. Ion Engine. Slammed into S-43 Plague. S-43 Plague destroyed. [Achievement: Fist Fight] Penetrated by Slug. S-43 Plague destroyed. R-10 Processor collects Hvy. Machine Gun. S-43 Plague destroyed. Slug penetrates Wall. T-07 Excavator destroyed. R-10 Processor collects Xenon Bombardment Thruster. Critical hit (Burn: +37). Penetrated by Slug. Mak. Hacking Suite destroyed. [Achievement: 10k Club] Map ----- +----------------------------------------------------+ | ?????????????????????????# # # | | ?????????????????????????# "" # # | | ?????????????????????????# """ !!!# # | | ?????????????????????????# "R !!!# ####### | | ?????????????????????????? """ !!!# # | | ????????????????????????????""" # + | | ?????????????????????????????? # # | | ???????????????????????????????? ?# # | | ???????????????????????????????###+#### # | | ???????????????????????????????# # | | ????????????????#### ########## # | | ???????????? # | | ???????????? ####### | | ????????????????################ ############## | | ???????????????????????????????# # # | | ???????????????????????????????# # # | | ???????????????????????????????# # ? | | ???????????????????????????????# # """"" ?? | | ???????????????????????????????# # """"" ?? | | ???????????????????????????????#% + """"" ? | | ???????????????????????????????# # """"" ? | | ???????" BB????????????????????# # """"" ? | | ???????" BB ###+############# # """"" ?? | | ???????" g h # ? | | ???????" g # # | | ???????" g @ hR # # | | ???????" g m ss ############## | | ???????" BB #### #########/##########??????? | | ???????"??????????# ???????#==%= #??????? | | ??????????????????# k????????# *%= #??????? | | ??????????????????#??????????# [%= #??????? | | ?????????????????????????????# * ! #??????? | | ?????????????????????????????# #??????? | | ??????????#???????# #?????# = #??????? | | ??????????#???????# #?????# #??????? | | ??????????#???????# #?????# !! #??????? | | ??????????######### #?????# ! #??????? | | ??????????# # #?????# #??????? | | ??????????# # #?????# %= #??????? | | ??????????# # #?????# #??????? | | ??????????# # #?????###/##/#######??????? | | ??????????# # #???????#%" #????????????? | | ??????????# # #???????#" #????????????? | | ??????????# # #???????# #????????????? | | ??????????# + ######### #????????????? | | ??????????# # #????????????? | | ??????????# # #????????????? | | ??????????# # #????????????? | | ??????????#+####### #????????????? | | ??????????# #????# ####????????????? | +----------------------------------------------------+ Best States ------------- Heat Dissipation 71 Coolant Potential 100 Energy Generation 28 Energy Capacity 560 Matter Stores 300 Matter Capacity 450 Sight Range 22 Robot Scan Range 15 Terrain Scan Range 20 Terrain Scan Density 210 Cloak Strength 2 Additional Mass Support 9 Armor Coverage 750 Resistance: TH 10 Propulsion Shielding 90 Evasion (%) 72 Targeting Accuracy 5 Melee Accuracy 14 Armor Integrity Analysis 30 Recoil Reduction 4 Offensive Hacking 14 Item Schematics ----------------- Rocket Launcher | -9/Materials | Scanalyzed Imp. Cesium-ion Thruster | -5/Factory | Scanalyzed Robot Schematics ------------------ None Fabricated ------------ Nothing Alien Tech Used ----------------- None Achievements -------------- 10k Club A Powerful Ally? Below Can't Catch Me Charge!!! Dangerous Findings Denied? Explorer Fist Fight Hunted I Spy I'm Back, Baby! Knowing Is Half The Battle Librarian Omniscient Cartographer Shopping List Universal Adapter We Are Legion Challenges ------------ None Game ------ Seed SpliceQuantumDerivative Manual? 0 Play Time 03:03:55 Cumulative 10.5 hours Start 2024.04.03 @ 10:05:15 End 2024.04.03 @ 22:47:08 Sessions 1 Manual Loads 0 Difficulty Rogue Special Mode None Game No. 12 Rogue 12 Adventurer 0 Explorer 0 Win Type - Total 0 Types 0/0/0/0/0/0/0/0/0 Lore% 5 Gallery% 18 Achievement% 21 Wizard Run 0 Options --------- Layout 1 ASCII 0 Keyboard 1 Movement Numpad Keybinds 0 Fullscreen 1 Font 24/Smallcaps Map View 50x35 Zoom Use 0% Tactical HUD 0 Map Filters NONE Filters NONE Steam 1 RUN: f1253500-049f-4fba-9632-f0b6ae2908b0